fUSD/lending_fUSD_20260625
["ID","MTS","AMOUNT","RATE_DAILY","PERIOD"]
[426338794,1782323442000,-250.0,0.00018227,2]
[426338793,1782323442000,-150.0,0.00018227,2]
[426338797,1782323442000,-150.654,0.00018227,2]
[426338799,1782323442000,-150.248,0.00018227,2]
[426338802,1782323442000,-195.748,0.00018227,2]
[426338801,1782323442000,-150.0,0.00018227,2]
[426338800,1782323442000,-935.0,0.00018227,2]
[426338803,1782323442000,-166.66,0.00018237,2]
[426338795,1782323442000,-6136.779,0.00018227,2]
[426338851,1782323443000,-151.0,0.0001981,2]
[426338842,1782323443000,-151.0,0.0001981,2]
[426338845,1782323443000,-151.0,0.0001981,2]
[426338850,1782323443000,-151.0,0.0001981,2]
[426338841,1782323443000,-151.0,0.0001981,2]
[426338839,1782323443000,-2140.60517494,0.0001981,2]
[426338840,1782323443000,-151.0,0.0001981,2]
[426338838,1782323443000,-190.50481675,0.00019759,2]
[426338852,1782323443000,-151.0,0.0001981,2]
[426338837,1782323443000,-1515.045,0.00019759,2]
[426338844,1782323443000,-151.0,0.0001981,2]
[426338843,1782323443000,-151.0,0.0001981,2]
[426338858,1782323443000,-151.0,0.0001981,2]
[426338849,1782323443000,-151.0,0.0001981,2]
[426338846,1782323443000,-151.0,0.0001981,2]
[426338848,1782323443000,-151.0,0.0001981,2]
[426338836,1782323443000,-1048.92270125,0.000197,2]
[426338853,1782323443000,-151.0,0.0001981,2]
[426338854,1782323443000,-151.0,0.0001981,2]
[426338861,1782323443000,-2000.0,0.000199,2]
[426338859,1782323443000,-151.0,0.0001981,2]
[426338863,1782323443000,-529.20565981,0.00019967,2]
[426338862,1782323443000,-395.63650625,0.00019917,2]
[426338855,1782323443000,-151.0,0.0001981,2]
[426338857,1782323443000,-151.0,0.0001981,2]
[426338856,1782323443000,-151.0,0.0001981,2]
[426338847,1782323443000,-151.0,0.0001981,2]
[426338834,1782323443000,-529.20565981,0.00019656,2]
[426338831,1782323443000,-151.0,0.0001948,2]
[426338830,1782323443000,-151.0,0.00019479,2]
[426338865,1782323443000,-25323.75,0.00019968,2]
[426338807,1782323443000,-1048.92270125,0.000185,2]
[426338810,1782323443000,-1048.92270125,0.000187,2]
[426338804,1782323443000,-1048.92270125,0.000184,2]
[426338805,1782323443000,-529.20565981,0.00018411,2]
[426338809,1782323443000,-166.66,0.00018598,2]
[426338808,1782323443000,-1674.17109747,0.000185,2]
[426338806,1782323443000,-303.84221421,0.00018411,2]
[426338823,1782323443000,-303.84221421,0.00019344,2]
[426338812,1782323443000,-529.20565981,0.00018722,2]
[426338822,1782323443000,-529.20565981,0.00019344,2]
[426338824,1782323443000,-482.48,0.00019478,2]
[426338835,1782323443000,-303.84221421,0.00019656,2]
[426338813,1782323443000,-303.84221421,0.00018722,2]
[426338811,1782323443000,-150.0,0.000187,7]
[426338815,1782323443000,-1674.17109747,0.000189,2]
[426338816,1782323443000,-166.66,0.00018959,2]
[426338819,1782323443000,-303.84221421,0.00019033,2]
[426338820,1782323443000,-1048.92270125,0.000191,2]
[426338817,1782323443000,-377.698002,0.00019009,2]
[426338821,1782323443000,-1048.92270125,0.000193,2]
[426338818,1782323443000,-529.20565981,0.00019033,2]
[426338825,1782323443000,-573.66,0.00019478,2]
[426338828,1782323443000,-151.0,0.00019479,2]
[426338832,1782323443000,-151.06,0.0001948,2]
[426338833,1782323443000,-1048.92270125,0.000195,2]
[426338814,1782323443000,-1048.92270125,0.000189,2]
[426338864,1782323443000,-303.84221421,0.00019967,2]
[426338826,1782323443000,-248.62,0.00019479,2]
[426338878,1782323443000,-1143.0,0.0002,2]
[426338902,1782323443000,-151.0,0.00020302,2]
[426338901,1782323443000,-151.0,0.00020302,2]
[426338925,1782323443000,-4119.56006549,0.00020548,3]
[426338907,1782323443000,-151.11,0.00020302,2]
[426338904,1782323443000,-151.0,0.00020302,2]
[426338906,1782323443000,-151.0,0.00020302,2]
[426338909,1782323443000,-151.0,0.00020302,2]
[426338905,1782323443000,-151.0,0.00020302,2]
[426338903,1782323443000,-151.0,0.00020302,2]
[426338908,1782323443000,-151.0,0.00020302,2]
[426338911,1782323443000,-151.0,0.00020302,2]
[426338910,1782323443000,-151.0,0.00020302,2]
[426338900,1782323443000,-151.0,0.00020302,2]
[426338912,1782323443000,-151.15,0.00020302,2]
[426338913,1782323443000,-151.66,0.00020302,2]
[426338915,1782323443000,-151.0,0.00020302,2]
[426338916,1782323443000,-151.0,0.00020302,2]
[426338921,1782323443000,-151.0,0.00020322,2]
[426338918,1782323443000,-151.0,0.00020302,2]
[426338917,1782323443000,-151.0,0.00020302,2]
[426338919,1782323443000,-151.0,0.00020322,2]
[426338922,1782323443000,-151.0,0.00020322,2]
[426338923,1782323443000,-2140.60517494,0.00020358,2]
[426338924,1782323443000,-500.0,0.00020498,2]
[426338926,1782323443000,-200.0,0.00020579,2]
[426338927,1782323443000,-529.20565981,0.00020589,2]
[426338914,1782323443000,-151.0,0.00020302,2]
[426338898,1782323443000,-151.0,0.00020302,2]
[426338920,1782323443000,-151.0,0.00020322,2]
[426338899,1782323443000,-151.56,0.00020302,2]
[426338896,1782323443000,-151.0,0.00020302,2]
[426338877,1782323443000,-309.0,0.0002,2]
[426338866,1782323443000,-826.89,0.00019968,2]
[426338868,1782323443000,-207.0,0.0002,2]
[426338869,1782323443000,-157.0,0.0002,2]
[426338870,1782323443000,-695.0,0.0002,2]
[426338871,1782323443000,-215.0,0.0002,2]
[426338872,1782323443000,-245.0,0.0002,2]
[426338874,1782323443000,-461.0,0.0002,2]
[426338873,1782323443000,-928.0,0.0002,2]
[426338876,1782323443000,-400.0,0.0002,2]
[426338875,1782323443000,-280.0,0.0002,2]
[426338879,1782323443000,-2140.60517494,0.00020084,2]
[426338867,1782323443000,-661.0,0.0001999,5]
[426338881,1782323443000,-303.84221421,0.00020278,2]
[426338892,1782323443000,-151.0,0.00020302,2]
[426338880,1782323443000,-529.20565981,0.00020278,2]
[426338893,1782323443000,-152.16,0.00020302,2]
[426338885,1782323443000,-185.23,0.000203,2]
[426338886,1782323443000,-483.39,0.000203,2]
[426338887,1782323443000,-151.0,0.00020301,2]
[426338891,1782323443000,-151.0,0.00020301,2]
[426338888,1782323443000,-151.0,0.00020301,2]
[426338882,1782323443000,-152.72,0.00020299,2]
[426338883,1782323443000,-482.48,0.000203,2]
[426338890,1782323443000,-151.0,0.00020301,2]
[426338889,1782323443000,-151.0,0.00020301,2]
[426338884,1782323443000,-151.0,0.000203,2]
[426338935,1782323444000,-190.73145287,0.000209,2]
[426338945,1782323444000,-153.82547983,0.0002099,2]
[426338928,1782323444000,-303.84221421,0.00020589,2]
[426338932,1782323444000,-529.20565981,0.000209,2]
[426338931,1782323444000,-155.23752538,0.000209,2]
[426338929,1782323444000,-2140.60517494,0.00020632,2]
[426338934,1782323444000,-298.22197074,0.000209,2]
[426338930,1782323444000,-1370.5235952,0.00020699,2]
[426338936,1782323444000,-466.7002598,0.000209,2]
[426338946,1782323444000,-980.0,0.00020999,5]
[426338933,1782323444000,-303.84221421,0.000209,2]
[426338943,1782323444000,-153.82547983,0.0002099,2]
[426338937,1782323444000,-2140.60517494,0.00020906,2]
[426338947,1782323444000,-150.0,0.00020999,2]
[426338949,1782323444000,-1068991.3782115,0.00021,2]
[426338948,1782323444000,-1227.0,0.00021,5]
[426338941,1782323444000,-351.48,0.00020979,2]
[426338942,1782323444000,-168.07,0.00020979,2]
[426338938,1782323444000,-187.29682,0.0002091,2]
[426338940,1782323444000,-187.29682,0.0002091,2]
[426338944,1782323444000,-153.82547983,0.0002099,2]
[426338939,1782323444000,-187.29683,0.0002091,2]
[426338950,1782323445000,-4200.00000002,0.00021,2]
[426338968,1782323446000,-69.75275247,0.00013899,2]
[426338967,1782323446000,-524.70724753,0.00013899,2]
[426338970,1782323446000,-231.58075854,0.00013899,2]
[426338969,1782323446000,-430.24724753,0.00013899,2]
[426338973,1782323446000,-471.10084088,0.00021,2]
[426338971,1782323446000,-473.02120158,0.00013899,2]
[426338974,1782323446000,-1783.74977999,0.00021,2]
[426338972,1782323446000,-1674.17109747,0.000193,2]
[426338976,1782323447000,-2805.1562,0.00021,2]
[426338978,1782323447000,-1423.2176596,0.00021,2]
[426338977,1782323447000,-6535.109592,0.00021,2]
[426338975,1782323447000,-2327.0159212,0.00021,2]
[426338980,1782323447000,-5413.15102675,0.00021,2]
[426338982,1782323447000,-2595.3,0.00021,2]
[426338981,1782323447000,-1142.0,0.00021,2]
[426338979,1782323447000,-6830.81332792,0.00021,2]
[426338983,1782323447000,-1721.6,0.00021,2]
[426338987,1782323491000,200.0,0.00028767,120]
[426338988,1782323503000,200.0,0.00028767,120]
[426338998,1782323518000,200.0,0.00028767,120]
[426338999,1782323531000,438.84,0.00028234,120]
[426339000,1782323539000,300.0,0.00028767,120]
[426339012,1782323718000,-198.50475237,0.00010832,7]
[426339058,1782323865000,14392.3625219,0.0002,120]
[426339256,1782324632000,-153.0,0.00011555,2]
[426339253,1782324632000,-210.88,0.00011555,2]
[426339251,1782324632000,-151.0,0.00011555,2]
[426339262,1782324632000,-166.66,0.00012026,2]
[426339263,1782324632000,-351.07,0.00012201,2]
[426339252,1782324632000,-150.0,0.00011555,2]
[426339247,1782324632000,-150.0,0.00011555,2]
[426339246,1782324632000,-151.0,0.00011555,2]
[426339250,1782324632000,-152.0,0.00011555,2]
[426339249,1782324632000,-153.0,0.00011555,2]
[426339245,1782324632000,-887.71325363,0.00011555,2]
[426339244,1782324632000,-161.71246925,0.00011554,2]
[426339243,1782324632000,-166.66,0.0001154,2]
[426339242,1782324632000,-250.0,0.00011524,2]
[426339240,1782324632000,-182.43241266,0.000115,2]
[426339241,1782324632000,-656.18855706,0.00011508,2]
[426339239,1782324632000,-308.3712,0.000115,2]
[426339255,1782324632000,-151.0,0.00011555,2]
[426339257,1782324632000,-151.0,0.00011555,2]
[426339248,1782324632000,-151.0,0.00011555,2]
[426339260,1782324632000,-2055.88,0.00011757,2]
[426339279,1782324632000,-319.0,0.00012355,2]
[426339254,1782324632000,-151.0,0.00011555,2]
[426339277,1782324632000,-311.0,0.00012355,2]
[426339278,1782324632000,-150.0,0.00012355,2]
[426339274,1782324632000,-150.0,0.00012354,2]
[426339276,1782324632000,-312.0,0.00012355,2]
[426339269,1782324632000,-314.0,0.00012354,2]
[426339271,1782324632000,-314.0,0.00012354,2]
[426339268,1782324632000,-151.0,0.00012354,2]
[426339270,1782324632000,-310.0,0.00012354,2]
[426339272,1782324632000,-151.0,0.00012354,2]
[426339265,1782324632000,-166.66,0.00012269,2]
[426339273,1782324632000,-309.0,0.00012354,2]
[426339267,1782324632000,-1000.0,0.00012308,2]
[426339266,1782324632000,-264.8,0.00012278,2]
[426339264,1782324632000,-536.95,0.00012201,2]
[426339261,1782324632000,-166.66,0.00011783,2]
[426339259,1782324632000,-874.82138119,0.00011555,2]
[426339275,1782324632000,-311.0,0.00012354,2]
[426339258,1782324632000,-151.0,0.00011555,2]
[426339321,1782324633000,-319.0,0.00012356,2]
[426339324,1782324633000,-151.0,0.00012356,2]
[426339320,1782324633000,-150.0,0.00012356,2]
[426339319,1782324633000,-150.0,0.00012356,2]
[426339316,1782324633000,-151.0,0.00012356,2]
[426339308,1782324633000,-319.0,0.00012356,2]
[426339310,1782324633000,-310.0,0.00012356,2]
[426339309,1782324633000,-313.0,0.00012356,2]
[426339305,1782324633000,-151.0,0.00012355,2]
[426339322,1782324633000,-320.0,0.00012356,2]
[426339306,1782324633000,-316.0,0.00012356,2]
[426339307,1782324633000,-314.0,0.00012356,2]
[426339318,1782324633000,-151.0,0.00012356,2]
[426339330,1782324633000,-316.0,0.00012356,2]
[426339323,1782324633000,-312.0,0.00012356,2]
[426339317,1782324633000,-150.0,0.00012356,2]
[426339327,1782324633000,-321.0,0.00012356,2]
[426339326,1782324633000,-189.82113556,0.00012356,2]
[426339335,1782324633000,-150.0,0.00012356,2]
[426339329,1782324633000,-309.0,0.00012356,2]
[426339328,1782324633000,-151.0,0.00012356,2]
[426339332,1782324633000,-150.0,0.00012356,2]
[426339333,1782324633000,-317.0,0.00012356,2]
[426339334,1782324633000,-310.0,0.00012356,2]
[426339331,1782324633000,-319.0,0.00012356,2]
[426339304,1782324633000,-311.0,0.00012355,2]
[426339325,1782324633000,-128.17886444,0.00012356,2]
[426339315,1782324633000,-153.0,0.00012356,2]
[426339281,1782324633000,-321.0,0.00012355,2]
[426339314,1782324633000,-151.0,0.00012356,2]
[426339337,1782324633000,-316.0,0.00012356,2]
[426339288,1782324633000,-310.0,0.00012355,2]
[426339289,1782324633000,-320.0,0.00012355,2]
[426339280,1782324633000,-152.0,0.00012355,2]
[426339286,1782324633000,-320.0,0.00012355,2]
[426339282,1782324633000,-314.0,0.00012355,2]
[426339284,1782324633000,-151.0,0.00012355,2]
[426339283,1782324633000,-312.0,0.00012355,2]
[426339287,1782324633000,-151.0,0.00012355,2]
[426339285,1782324633000,-319.0,0.00012355,2]
[426339290,1782324633000,-153.0,0.00012355,2]
[426339291,1782324633000,-313.0,0.00012355,2]
[426339313,1782324633000,-150.0,0.00012356,2]
[426339300,1782324633000,-397.21528232,0.00012355,2]
[426339292,1782324633000,-317.0,0.00012355,2]
[426339294,1782324633000,-151.0,0.00012355,2]
[426339302,1782324633000,-320.0,0.00012355,2]
[426339297,1782324633000,-310.0,0.00012355,2]
[426339298,1782324633000,-151.0,0.00012355,2]
[426339296,1782324633000,-319.0,0.00012355,2]
[426339299,1782324633000,-631.1148411,0.00012355,2]
[426339295,1782324633000,-310.0,0.00012355,2]
[426339293,1782324633000,-316.0,0.00012355,2]
[426339311,1782324633000,-151.0,0.00012356,2]
[426339312,1782324633000,-151.0,0.00012356,2]
[426339303,1782324633000,-309.0,0.00012355,2]
[426339301,1782324633000,-311.0,0.00012355,2]
[426339348,1782324633000,-310.0,0.00012356,2]
[426339388,1782324633000,-153.0,0.00013899,2]
[426339347,1782324633000,-317.0,0.00012356,2]
[426339371,1782324633000,-4929.78287332,0.000137,2]
[426339369,1782324633000,-200.0,0.00013699,2]
[426339373,1782324633000,-201489.85269329,0.00013763,2]
[426339374,1782324633000,-14114.14970671,0.00013763,2]
[426339376,1782324633000,-4929.7828733,0.00013833,2]
[426339379,1782324633000,-153.0,0.00013899,2]
[426339381,1782324633000,-152.0,0.00013899,2]
[426339375,1782324633000,-481.001,0.000138,2]
[426339377,1782324633000,-1611.5,0.00013863,2]
[426339380,1782324633000,-151.0,0.00013899,2]
[426339378,1782324633000,-150.0,0.00013899,2]
[426339384,1782324633000,-151.0,0.00013899,2]
[426339372,1782324633000,-351.07,0.00013726,2]
[426339382,1782324633000,-151.0,0.00013899,2]
[426339385,1782324633000,-312.0,0.00013899,2]
[426339396,1782324633000,-151.0,0.00013899,2]
[426339386,1782324633000,-310.0,0.00013899,2]
[426339336,1782324633000,-320.0,0.00012356,2]
[426339389,1782324633000,-320.0,0.00013899,2]
[426339390,1782324633000,-239.39254116,0.00013899,2]
[426339395,1782324633000,-310.0,0.00013899,2]
[426339391,1782324633000,-319.0,0.00013899,2]
[426339393,1782324633000,-319.0,0.00013899,2]
[426339392,1782324633000,-151.0,0.00013899,2]
[426339394,1782324633000,-318.0,0.00013899,2]
[426339397,1782324633000,-318.0,0.00013899,2]
[426339383,1782324633000,-320.0,0.00013899,2]
[426339368,1782324633000,-264.8,0.00013506,2]
[426339387,1782324633000,-320.0,0.00013899,2]
[426339370,1782324633000,-239.11352731,0.00013699,2]
[426339367,1782324633000,-255.99,0.0001333,2]
[426339338,1782324633000,-315.0,0.00012356,2]
[426339339,1782324633000,-152.0,0.00012356,2]
[426339344,1782324633000,-313.0,0.00012356,2]
[426339346,1782324633000,-150.0,0.00012356,2]
[426339340,1782324633000,-313.0,0.00012356,2]
[426339342,1782324633000,-151.0,0.00012356,2]
[426339341,1782324633000,-312.0,0.00012356,2]
[426339343,1782324633000,-312.0,0.00012356,2]
[426339349,1782324633000,-153.0,0.00012356,2]
[426339350,1782324633000,-319.0,0.00012356,2]
[426339352,1782324633000,-166.66,0.00012512,2]
[426339361,1782324633000,-264.8,0.00012892,2]
[426339345,1782324633000,-319.0,0.00012356,2]
[426339353,1782324633000,-264.8,0.00012585,2]
[426339366,1782324633000,-218.97647269,0.00013225,2]
[426339351,1782324633000,-500.0,0.00012356,2]
[426339365,1782324633000,-150.0,0.00013225,2]
[426339363,1782324633000,-264.8,0.00013199,2]
[426339362,1782324633000,-500.0,0.00012904,2]
[426339359,1782324633000,-479.7484843,0.00012816,2]
[426339364,1782324633000,-150.0,0.00013225,2]
[426339357,1782324633000,-181.79068135,0.00012816,2]
[426339354,1782324633000,-500.0,0.0001263,2]
[426339358,1782324633000,-320.70031024,0.00012816,2]
[426339356,1782324633000,-166.66,0.00012755,2]
[426339360,1782324633000,-649.1133,0.00012816,2]
[426339355,1782324633000,-250.0,0.00012658,2]
[426339408,1782324634000,-4929.7828733,0.00014367,2]
[426339409,1782324634000,-5482.88630044,0.000144,2]
[426339398,1782324634000,-320.0,0.00013899,2]
[426339406,1782324634000,-150.0,0.00014225,2]
[426339405,1782324634000,-151.0,0.00014225,2]
[426339401,1782324634000,-216.42324807,0.00013907,2]
[426339400,1782324634000,-160.0,0.00013907,2]
[426339399,1782324634000,-151.0,0.00013899,2]
[426339403,1782324634000,-4929.7828733,0.000141,2]
[426339402,1782324634000,-4929.7828733,0.00013967,2]
[426339404,1782324634000,-166.7,0.00014157,2]
[426339416,1782324634000,-150.0,0.00014482,2]
[426339410,1782324634000,-1345.75189956,0.000144,2]
[426339407,1782324634000,-4929.7828733,0.00014233,2]
[426339420,1782324634000,-6507.501501,0.000145,2]
[426339417,1782324634000,-1000.0,0.00014482,2]
[426339419,1782324634000,-2187.90384213,0.000145,2]
[426339418,1782324634000,-57409.00962625,0.000145,2]
[426339421,1782324634000,-3350.0,0.000145,2]
[426339412,1782324634000,-287.34161706,0.000144,2]
[426339415,1782324634000,-837.08554873,0.00014471,2]
[426339413,1782324634000,-2500.0,0.000144,2]
[426339411,1782324634000,-837.08554877,0.000144,2]
[426339414,1782324634000,-287.34161699,0.00014456,2]
[426339445,1782324638000,-287.34161699,0.00014622,2]
[426339453,1782324638000,-287.34161699,0.00014733,2]
[426339446,1782324638000,-4929.7828733,0.00014633,2]
[426339456,1782324638000,-287.34161699,0.00014789,2]
[426339457,1782324638000,-837.08554873,0.00014829,2]
[426339447,1782324638000,-287.34161699,0.00014678,2]
[426339441,1782324638000,-287.34161699,0.00014511,2]
[426339439,1782324638000,-689.52000272,0.000145,2]
[426339442,1782324638000,-837.08554873,0.00014543,2]
[426339443,1782324638000,-287.34161699,0.00014567,2]
[426339440,1782324638000,-4929.7828733,0.000145,2]
[426339438,1782324638000,-40708.39973992,0.000145,2]
[426339436,1782324638000,-5433.98608498,0.000145,2]
[426339437,1782324638000,-3100.30384682,0.000145,2]
[426339451,1782324638000,-150.0,0.000147,2]
[426339444,1782324638000,-837.08554873,0.00014614,2]
[426339450,1782324638000,-150.0,0.000147,2]
[426339452,1782324638000,-236.54387101,0.000147,2]
[426339459,1782324638000,-216.82023642,0.000149,2]
[426339458,1782324638000,-287.34161699,0.00014844,2]
[426339480,1782324638000,-14.40533251,0.000149,2]
[426339482,1782324638000,-665.92466749,0.000149,2]
[426339477,1782324638000,-272.93628448,0.000149,2]
[426339468,1782324638000,-596.44394146,0.000149,2]
[426339472,1782324638000,-948.0516882,0.000149,2]
[426339470,1782324638000,-837.08554873,0.000149,2]
[426339466,1782324638000,-11839.42649668,0.000149,3]
[426339473,1782324638000,-738.84348899,0.000149,2]
[426339462,1782324638000,-7955.76188765,0.000149,3]
[426339460,1782324638000,-445.77085455,0.000149,2]
[426339454,1782324638000,-837.08554873,0.00014757,2]
[426339455,1782324638000,-4929.7828733,0.00014767,2]
[426339449,1782324638000,-837.08554873,0.00014686,2]
[426339448,1782324638000,-500.0,0.00014679,2]
[426339475,1782324638000,-1129.97677952,0.000149,2]
[426339461,1782324638000,-5204.81161567,0.000149,3]
[426339673,1782324640000,-500.0,0.00014999,2]
[426339667,1782324640000,-433.22034526,0.0001499,2]
[426339669,1782324640000,-433.22034526,0.0001499,2]
[426339664,1782324640000,-6566.0,0.00014959,2]
[426339665,1782324640000,-216.82023636,0.00014974,2]
[426339663,1782324640000,-4263.85820581,0.000149,2]
[426339666,1782324640000,-514.83,0.00014985,2]
[426339671,1782324640000,-500.0,0.00014999,2]
[426339676,1782324640000,-1080.90492825,0.00014999,5]
[426339668,1782324640000,-433.22034526,0.0001499,2]
[426339675,1782324640000,-500.0,0.00014999,2]
[426339670,1782324640000,-1080.90492825,0.00014999,5]
[426339682,1782324640000,-500.0,0.00014999,2]
[426339684,1782324640000,-500.0,0.00014999,2]
[426339681,1782324640000,-500.0,0.00014999,2]
[426339679,1782324640000,-500.0,0.00014999,2]
[426339683,1782324640000,-500.0,0.00014999,2]
[426339677,1782324640000,-1000.0,0.00014999,2]
[426339678,1782324640000,-500.0,0.00014999,2]
[426339674,1782324640000,-500.0,0.00014999,2]
[426339680,1782324640000,-500.0,0.00014999,2]
[426339700,1782324641000,-500.0,0.00014999,2]
[426339701,1782324641000,-500.0,0.00014999,2]
[426339712,1782324641000,-500.0,0.00014999,2]
[426339702,1782324641000,-500.0,0.00014999,2]
[426339696,1782324641000,-500.0,0.00014999,2]
[426339706,1782324641000,-500.0,0.00014999,2]
[426339695,1782324641000,-500.0,0.00014999,2]
[426339690,1782324641000,-500.0,0.00014999,2]
[426339698,1782324641000,-500.0,0.00014999,2]
[426339689,1782324641000,-500.0,0.00014999,2]
[426339694,1782324641000,-500.0,0.00014999,2]
[426339692,1782324641000,-500.0,0.00014999,2]
[426339691,1782324641000,-500.0,0.00014999,2]
[426339699,1782324641000,-500.0,0.00014999,2]
[426339687,1782324641000,-500.0,0.00014999,2]
[426339686,1782324641000,-500.0,0.00014999,2]
[426339685,1782324641000,-500.0,0.00014999,2]
[426339688,1782324641000,-500.0,0.00014999,2]
[426339704,1782324641000,-500.0,0.00014999,2]
[426339697,1782324641000,-500.0,0.00014999,2]
[426339705,1782324641000,-500.0,0.00014999,2]
[426339693,1782324641000,-500.0,0.00014999,2]
[426339713,1782324641000,-500.0,0.00014999,2]
[426339728,1782324641000,-332.65607198,0.00014999,2]
[426339708,1782324641000,-500.0,0.00014999,2]
[426339727,1782324641000,-167.34392802,0.00014999,2]
[426339725,1782324641000,-141.29391302,0.00014999,2]
[426339724,1782324641000,-141.202357,0.00014999,2]
[426339723,1782324641000,-301.90461152,0.00014999,2]
[426339718,1782324641000,-500.0,0.00014999,2]
[426339719,1782324641000,-500.0,0.00014999,2]
[426339721,1782324641000,-500.0,0.00014999,2]
[426339720,1782324641000,-500.0,0.00014999,2]
[426339726,1782324641000,-358.70608698,0.00014999,2]
[426339722,1782324641000,-56.89303148,0.00014999,2]
[426339717,1782324641000,-500.0,0.00014999,2]
[426339709,1782324641000,-500.0,0.00014999,2]
[426339707,1782324641000,-500.0,0.00014999,2]
[426339710,1782324641000,-500.0,0.00014999,2]
[426339703,1782324641000,-500.0,0.00014999,2]
[426339716,1782324641000,-500.0,0.00014999,2]
[426339714,1782324641000,-500.0,0.00014999,2]
[426339715,1782324641000,-500.0,0.00014999,2]
[426339729,1782324641000,-370.25692802,0.00014999,2]
[426339711,1782324641000,-500.0,0.00014999,2]
[426339765,1782324644000,-607.55446856,0.000149,2]
[426339766,1782324644000,-84.28909986,0.00014999,2]
[426339853,1782324646000,-279.02224812,0.00014999,2]
[426339861,1782324646000,-139.02224812,0.00014999,2]
[426339859,1782324646000,-500.0,0.00014999,2]
[426339856,1782324646000,-500.0,0.00014999,2]
[426339858,1782324646000,-500.0,0.00014999,2]
[426339857,1782324646000,-500.0,0.00014999,2]
[426339855,1782324646000,-500.0,0.00014999,2]
[426339849,1782324646000,-500.0,0.00014999,2]
[426339854,1782324646000,-500.0,0.00014999,2]
[426339852,1782324646000,-220.97775188,0.00014999,2]
[426339850,1782324646000,-500.0,0.00014999,2]
[426339851,1782324646000,-500.0,0.00014999,2]
[426339848,1782324646000,-500.0,0.00014999,2]
[426339847,1782324646000,-500.0,0.00014999,2]
[426339846,1782324646000,-45.45397212,0.00014999,2]
[426339860,1782324646000,-360.97775188,0.00014999,2]
[426339862,1782324646000,-455.66769188,0.00014999,2]
[426339864,1782324646000,-500.0,0.00014999,2]
[426339865,1782324646000,-500.0,0.00014999,2]
[426339879,1782324646000,-67630.55786636,0.00015,2]
[426339880,1782324646000,-3928.72722997,0.00015,2]
[426339874,1782324646000,-500.0,0.00014999,2]
[426339876,1782324646000,-500.0,0.00014999,2]
[426339873,1782324646000,-500.0,0.00014999,2]
[426339877,1782324646000,-500.0,0.00014999,2]
[426339872,1782324646000,-500.0,0.00014999,2]
[426339875,1782324646000,-500.0,0.00014999,2]
[426339869,1782324646000,-500.0,0.00014999,2]
[426339871,1782324646000,-500.0,0.00014999,2]
[426339878,1782324646000,-300.0,0.00014999,2]
[426339867,1782324646000,-500.0,0.00014999,2]
[426339870,1782324646000,-500.0,0.00014999,2]
[426339868,1782324646000,-500.0,0.00014999,2]
[426339866,1782324646000,-500.0,0.00014999,2]
[426339863,1782324646000,-44.33230812,0.00014999,2]
[426339935,1782324976000,68877.8878204,0.000286,120]
[426339939,1782325152000,-197.14756223,0.00012354,2]
[426339938,1782325152000,-152.0,0.00012354,2]
[426339952,1782325813000,-395.39140916,0.00012264,2]